Workbook

Sheet YTD Budget Summary
B2: 2006 Actual versus Budget YTD
B4: Account Number | C4: Account | D4: YTD Actual | E4: YTD Budget | F4: Remaining Budget $ | G4: Remaining Budget %
B5: 1000 | C5: Office | D5: ='Monthly Expenses'!O5 -> $425.00 | E5: $50,000.00 | F5: =SUM(E5-D5) -> $49,575.00 | G5: =SUM('YTD Budget Summary'!$F$5:$F$9/'YTD Budget Summary'!$E$5:$E$9) -> 99.15%
B6: 2000 | C6: Store | D6: ='Monthly Expenses'!O6 -> $905.27 | E6: $75,000.00 | F6: =SUM(E6-D6) -> $74,094.73 | G6: =SUM('YTD Budget Summary'!$F$5:$F$9/'YTD Budget Summary'!$E$5:$E$9) -> 98.79%
B7: 3000 | C7: Staffing | D7: ='Monthly Expenses'!O7 -> $2,500.00 | E7: $100,000.00 | F7: =SUM(E7-D7) -> $97,500.00 | G7: =SUM('YTD Budget Summary'!$F$5:$F$9/'YTD Budget Summary'!$E$5:$E$9) -> 97.50%
B8: 4000 | C8: Equipment | D8: ='Monthly Expenses'!O8 -> $1,854.00 | E8: $25,000.00 | F8: =SUM(E8-D8) -> $23,146.00 | G8: =SUM('YTD Budget Summary'!$F$5:$F$9/'YTD Budget Summary'!$E$5:$E$9) -> 92.58%
B9: 5000 | C9: Other | D9: ='Monthly Expenses'!O9 -> $35.60 | E9: $50,000.00 | F9: =SUM(E9-D9) -> $49,964.40 | G9: =SUM('YTD Budget Summary'!$F$5:$F$9/'YTD Budget Summary'!$E$5:$E$9) -> 99.93%
B10: Total | D10: =SUBTOTAL(109,D5:D9) -> $5,719.87 | E10: =SUBTOTAL(109,E5:E9) -> $300,000.00 | F10: =SUBTOTAL(109,F5:F9) -> $294,280.13 | G10: =F10/E10 -> 98.09%

Sheet Monthly Expenses
A2: 2006 Monthly Expenses
A4: Account Number | B4: Account | C4: 1/1/6 | D4: 2/1/6 | E4: 3/1/6 | F4: 4/1/6 | G4: 5/1/6 | H4: 6/1/6 | I4: 7/1/6 | J4: 8/1/6 | K4: 9/1/6 | L4: 10/1/6 | M4: 11/1/6 | N4: 12/1/6 | O4: 2006 Total
A5: 1000 | B5: Office | C5: =SUMIF('1000-Office'!$J:$J,"="&(TEXT(C$4,"mmm-yy")),'1000-Office'!$E:$E) -> $100.00 | D5: =SUMIF('1000-Office'!$J:$J,"="&(TEXT(D$4,"mmm-yy")),'1000-Office'!$E:$E) -> $325.00 | E5: =SUMIF('1000-Office'!$J:$J,"="&(TEXT(E$4,"mmm-yy")),'1000-Office'!$E:$E) -> $0.00 | F5: =SUMIF('1000-Office'!$J:$J,"="&(TEXT(F$4,"mmm-yy")),'1000-Office'!$E:$E) -> $0.00 | G5: =SUMIF('1000-Office'!$J:$J,"="&(TEXT(G$4,"mmm-yy")),'1000-Office'!$E:$E) -> $0.00 | H5: =SUMIF('1000-Office'!$J:$J,"="&(TEXT(H$4,"mmm-yy")),'1000-Office'!$E:$E) -> $0.00 | I5: =SUMIF('1000-Office'!$J:$J,"="&(TEXT(I$4,"mmm-yy")),'1000-Office'!$E:$E) -> $0.00 | J5: =SUMIF('1000-Office'!$J:$J,"="&(TEXT(J$4,"mmm-yy")),'1000-Office'!$E:$E) -> $0.00 | K5: =SUMIF('1000-Office'!$J:$J,"="&(TEXT(K$4,"mmm-yy")),'1000-Office'!$E:$E) -> $0.00 | L5: =SUMIF('1000-Office'!$J:$J,"="&(TEXT(L$4,"mmm-yy")),'1000-Office'!$E:$E) -> $0.00 | M5: =SUMIF('1000-Office'!$J:$J,"="&(TEXT(M$4,"mmm-yy")),'1000-Office'!$E:$E) -> $0.00 | N5: =SUMIF('1000-Office'!$J:$J,"="&(TEXT(N$4,"mmm-yy")),'1000-Office'!$E:$E) -> $0.00 | O5: =SUM('Monthly Expenses'!$C$5:$C$9+'Monthly Expenses'!$D$5:$D$9+'Monthly Expenses'!$E$5:$E$9+'Monthly Expenses'!$F$5:$F$9+'Monthly Expenses'!$G$5:$G$9+'Monthly Expenses'!$H$5:$H$9+'Monthly Expenses'!$I$5:$I$9+'Monthly Expenses'!$J$5:$J$9+'Monthly Expenses'!$K$5:$K$9+'Monthly Expenses'!$L$5:$L$9+'Monthly Expenses'!$M$5:$M$9+'Monthly Expenses'!$N$5:$N$9) -> $425.00
A6: 2000 | B6: Store | C6: =SUMIF('2000-Store'!$J:$J,"="&(TEXT(C$4,"mmm-yy")),'2000-Store'!$E:$E) -> $905.27 | D6: =SUMIF('2000-Store'!$J:$J,"="&(TEXT(D$4,"mmm-yy")),'2000-Store'!$E:$E) -> $0.00 | E6: =SUMIF('2000-Store'!$J:$J,"="&(TEXT(E$4,"mmm-yy")),'2000-Store'!$E:$E) -> $0.00 | F6: =SUMIF('2000-Store'!$J:$J,"="&(TEXT(F$4,"mmm-yy")),'2000-Store'!$E:$E) -> $0.00 | G6: =SUMIF('2000-Store'!$J:$J,"="&(TEXT(G$4,"mmm-yy")),'2000-Store'!$E:$E) -> $0.00 | H6: =SUMIF('2000-Store'!$J:$J,"="&(TEXT(H$4,"mmm-yy")),'2000-Store'!$E:$E) -> $0.00 | I6: =SUMIF('2000-Store'!$J:$J,"="&(TEXT(I$4,"mmm-yy")),'2000-Store'!$E:$E) -> $0.00 | J6: =SUMIF('2000-Store'!$J:$J,"="&(TEXT(J$4,"mmm-yy")),'2000-Store'!$E:$E) -> $0.00 | K6: =SUMIF('2000-Store'!$J:$J,"="&(TEXT(K$4,"mmm-yy")),'2000-Store'!$E:$E) -> $0.00 | L6: =SUMIF('2000-Store'!$J:$J,"="&(TEXT(L$4,"mmm-yy")),'2000-Store'!$E:$E) -> $0.00 | M6: =SUMIF('2000-Store'!$J:$J,"="&(TEXT(M$4,"mmm-yy")),'2000-Store'!$E:$E) -> $0.00 | N6: =SUMIF('2000-Store'!$J:$J,"="&(TEXT(N$4,"mmm-yy")),'2000-Store'!$E:$E) -> $0.00 | O6: =SUM('Monthly Expenses'!$C$5:$C$9+'Monthly Expenses'!$D$5:$D$9+'Monthly Expenses'!$E$5:$E$9+'Monthly Expenses'!$F$5:$F$9+'Monthly Expenses'!$G$5:$G$9+'Monthly Expenses'!$H$5:$H$9+'Monthly Expenses'!$I$5:$I$9+'Monthly Expenses'!$J$5:$J$9+'Monthly Expenses'!$K$5:$K$9+'Monthly Expenses'!$L$5:$L$9+'Monthly Expenses'!$M$5:$M$9+'Monthly Expenses'!$N$5:$N$9) -> $905.27
A7: 3000 | B7: Staffing | C7: =SUMIF('3000-Staffing'!$J:$J,"="&(TEXT(C$4,"mmm-yy")),'3000-Staffing'!$E:$E) -> $0.00 | D7: =SUMIF('3000-Staffing'!$J:$J,"="&(TEXT(D$4,"mmm-yy")),'3000-Staffing'!$E:$E) -> $2,500.00 | E7: =SUMIF('3000-Staffing'!$J:$J,"="&(TEXT(E$4,"mmm-yy")),'3000-Staffing'!$E:$E) -> $0.00 | F7: =SUMIF('3000-Staffing'!$J:$J,"="&(TEXT(F$4,"mmm-yy")),'3000-Staffing'!$E:$E) -> $0.00 | G7: =SUMIF('3000-Staffing'!$J:$J,"="&(TEXT(G$4,"mmm-yy")),'3000-Staffing'!$E:$E) -> $0.00 | H7: =SUMIF('3000-Staffing'!$J:$J,"="&(TEXT(H$4,"mmm-yy")),'3000-Staffing'!$E:$E) -> $0.00 | I7: =SUMIF('3000-Staffing'!$J:$J,"="&(TEXT(I$4,"mmm-yy")),'3000-Staffing'!$E:$E) -> $0.00 | J7: =SUMIF('3000-Staffing'!$J:$J,"="&(TEXT(J$4,"mmm-yy")),'3000-Staffing'!$E:$E) -> $0.00 | K7: =SUMIF('3000-Staffing'!$J:$J,"="&(TEXT(K$4,"mmm-yy")),'3000-Staffing'!$E:$E) -> $0.00 | L7: =SUMIF('3000-Staffing'!$J:$J,"="&(TEXT(L$4,"mmm-yy")),'3000-Staffing'!$E:$E) -> $0.00 | M7: =SUMIF('3000-Staffing'!$J:$J,"="&(TEXT(M$4,"mmm-yy")),'3000-Staffing'!$E:$E) -> $0.00 | N7: =SUMIF('3000-Staffing'!$J:$J,"="&(TEXT(N$4,"mmm-yy")),'3000-Staffing'!$E:$E) -> $0.00 | O7: =SUM('Monthly Expenses'!$C$5:$C$9+'Monthly Expenses'!$D$5:$D$9+'Monthly Expenses'!$E$5:$E$9+'Monthly Expenses'!$F$5:$F$9+'Monthly Expenses'!$G$5:$G$9+'Monthly Expenses'!$H$5:$H$9+'Monthly Expenses'!$I$5:$I$9+'Monthly Expenses'!$J$5:$J$9+'Monthly Expenses'!$K$5:$K$9+'Monthly Expenses'!$L$5:$L$9+'Monthly Expenses'!$M$5:$M$9+'Monthly Expenses'!$N$5:$N$9) -> $2,500.00
A8: 4000 | B8: Equipment | C8: =SUMIF('4000-Equipment'!$J:$J,"="&(TEXT(C$4,"mmm-yy")),'4000-Equipment'!$E:$E) -> $1,854.00 | D8: =SUMIF('4000-Equipment'!$J:$J,"="&(TEXT(D$4,"mmm-yy")),'4000-Equipment'!$E:$E) -> $0.00 | E8: =SUMIF('4000-Equipment'!$J:$J,"="&(TEXT(E$4,"mmm-yy")),'4000-Equipment'!$E:$E) -> $0.00 | F8: =SUMIF('4000-Equipment'!$J:$J,"="&(TEXT(F$4,"mmm-yy")),'4000-Equipment'!$E:$E) -> $0.00 | G8: =SUMIF('4000-Equipment'!$J:$J,"="&(TEXT(G$4,"mmm-yy")),'4000-Equipment'!$E:$E) -> $0.00 | H8: =SUMIF('4000-Equipment'!$J:$J,"="&(TEXT(H$4,"mmm-yy")),'4000-Equipment'!$E:$E) -> $0.00 | I8: =SUMIF('4000-Equipment'!$J:$J,"="&(TEXT(I$4,"mmm-yy")),'4000-Equipment'!$E:$E) -> $0.00 | J8: =SUMIF('4000-Equipment'!$J:$J,"="&(TEXT(J$4,"mmm-yy")),'4000-Equipment'!$E:$E) -> $0.00 | K8: =SUMIF('4000-Equipment'!$J:$J,"="&(TEXT(K$4,"mmm-yy")),'4000-Equipment'!$E:$E) -> $0.00 | L8: =SUMIF('4000-Equipment'!$J:$J,"="&(TEXT(L$4,"mmm-yy")),'4000-Equipment'!$E:$E) -> $0.00 | M8: =SUMIF('4000-Equipment'!$J:$J,"="&(TEXT(M$4,"mmm-yy")),'4000-Equipment'!$E:$E) -> $0.00 | N8: =SUMIF('4000-Equipment'!$J:$J,"="&(TEXT(N$4,"mmm-yy")),'4000-Equipment'!$E:$E) -> $0.00 | O8: =SUM('Monthly Expenses'!$C$5:$C$9+'Monthly Expenses'!$D$5:$D$9+'Monthly Expenses'!$E$5:$E$9+'Monthly Expenses'!$F$5:$F$9+'Monthly Expenses'!$G$5:$G$9+'Monthly Expenses'!$H$5:$H$9+'Monthly Expenses'!$I$5:$I$9+'Monthly Expenses'!$J$5:$J$9+'Monthly Expenses'!$K$5:$K$9+'Monthly Expenses'!$L$5:$L$9+'Monthly Expenses'!$M$5:$M$9+'Monthly Expenses'!$N$5:$N$9) -> $1,854.00
A9: 5000 | B9: Other | C9: =SUMIF('5000-Other'!$J:$J,"="&(TEXT(C$4,"mmm-yy")),'5000-Other'!$E:$E) -> $35.60 | D9: =SUMIF('5000-Other'!$J:$J,"="&(TEXT(D$4,"mmm-yy")),'5000-Other'!$E:$E) -> $0.00 | E9: =SUMIF('5000-Other'!$J:$J,"="&(TEXT(E$4,"mmm-yy")),'5000-Other'!$E:$E) -> $0.00 | F9: =SUMIF('5000-Other'!$J:$J,"="&(TEXT(F$4,"mmm-yy")),'5000-Other'!$E:$E) -> $0.00 | G9: =SUMIF('5000-Other'!$J:$J,"="&(TEXT(G$4,"mmm-yy")),'5000-Other'!$E:$E) -> $0.00 | H9: =SUMIF('5000-Other'!$J:$J,"="&(TEXT(H$4,"mmm-yy")),'5000-Other'!$E:$E) -> $0.00 | I9: =SUMIF('5000-Other'!$J:$J,"="&(TEXT(I$4,"mmm-yy")),'5000-Other'!$E:$E) -> $0.00 | J9: =SUMIF('5000-Other'!$J:$J,"="&(TEXT(J$4,"mmm-yy")),'5000-Other'!$E:$E) -> $0.00 | K9: =SUMIF('5000-Other'!$J:$J,"="&(TEXT(K$4,"mmm-yy")),'5000-Other'!$E:$E) -> $0.00 | L9: =SUMIF('5000-Other'!$J:$J,"="&(TEXT(L$4,"mmm-yy")),'5000-Other'!$E:$E) -> $0.00 | M9: =SUMIF('5000-Other'!$J:$J,"="&(TEXT(M$4,"mmm-yy")),'5000-Other'!$E:$E) -> $0.00 | N9: =SUMIF('5000-Other'!$J:$J,"="&(TEXT(N$4,"mmm-yy")),'5000-Other'!$E:$E) -> $0.00 | O9: =SUM('Monthly Expenses'!$C$5:$C$9+'Monthly Expenses'!$D$5:$D$9+'Monthly Expenses'!$E$5:$E$9+'Monthly Expenses'!$F$5:$F$9+'Monthly Expenses'!$G$5:$G$9+'Monthly Expenses'!$H$5:$H$9+'Monthly Expenses'!$I$5:$I$9+'Monthly Expenses'!$J$5:$J$9+'Monthly Expenses'!$K$5:$K$9+'Monthly Expenses'!$L$5:$L$9+'Monthly Expenses'!$M$5:$M$9+'Monthly Expenses'!$N$5:$N$9) -> $35.60
A10: Total | C10: =SUBTOTAL(109,C5:C9) -> $2,894.87 | D10: $2,825.00 | E10: $0.00 | F10: $0.00 | G10: $0.00 | H10: $0.00 | I10: $0.00 | J10: $0.00 | K10: $0.00 | L10: $0.00 | M10: $0.00 | N10: $0.00 | O10: $5,719.87

Sheet 1000-Office
A1: G/L - Expense | B1: Invoice Date | C1: Invoice # | D1: Requested by | E1: Amount of Check | F1: Name of Payee | G1: Check Use | H1: Method of Distribution | I1: File Date | J1: Constructed Key Field
A2: 1000 | B2: 3873200.00% | C2: 1 | D2: David Daniels | E2: $100.00 | F2: Consolidated Messenger | G2: Blank CDs | H2: Credit | I2: 3873700.00% | J2: =TEXT(B2,"mmm-yy") -> Jan-06
A3: 1000 | B3: 2006-02-07 | C3: 5 | D3: David Daniels | E3: $50.00 | F3: Consolidated Messenger | G3: Printer ink | H3: Credit | I3: 3875800.00% | J3: =TEXT(B3,"mmm-yy") -> Feb-06
A4: 1000 | B4: 2006-02-15 | C4: 10 | D4: David Daniels | E4: $275.00 | F4: Acme | G4: General office | H4: Credit | I4: 3875800.00% | J4: =TEXT(B4,"mmm-yy") -> Feb-06
A5: 1000 | J5: =TEXT(B5,"mmm-yy") -> Jan-00
A6: Total | E6: =SUBTOTAL(109,E2:E5) -> $425.00

Sheet 2000-Store
A1: G/L - Expense | B1: Invoice Date | C1: Invoice # | D1: Requested by | E1: Amount of Check | F1: Name of Payee | G1: Check Use | H1: Method of Distribution | I1: File Date | J1: Constructed Key Field
A2: 2000 | B2: 3873400.00% | C2: 2 | D2: Marc Faeber | E2: $550.00 | F2: Fabrikam, Inc. | G2: Replace store window | H2: Credit | I2: 3873700.00% | J2: =TEXT(B2,"mmm-yy") -> Jan-06
A3: 2000 | B3: 2006-01-19 | C3: 3 | D3: Marc Faeber | E3: $355.27 | F3: A. Datum Corporation | G3: New cash register | H3: Credit | I3: 3873700.00% | J3: =TEXT(B3,"mmm-yy") -> Jan-06
A4: 2000 | J4: =TEXT(B4,"mmm-yy") -> Jan-00
A5: Total | E5: =SUBTOTAL(109,E2:E4) -> $905.27

Sheet 3000-Staffing
A1: G/L - Expense | B1: Invoice Date | C1: Invoice # | D1: Requested by | E1: Amount of Check | F1: Name of Payee | G1: Check Use | H1: Method of Distribution | I1: File Date | J1: Constructed Key Field
A2: 3000 | B2: 3875800.00% | C2: 6 | D2: Robert O'Hara | E2: $2,500.00 | F2: Graphic Design Institute | G2: contract designer | H2: Check | I2: 3876800.00% | J2: =TEXT(B2,"mmm-yy") -> Feb-06
A3: 3000 | J3: =TEXT(B3,"mmm-yy") -> Jan-00
A4: Total | E4: =SUBTOTAL(109,E2:E3) -> $2,500.00

Sheet 4000-Equipment
A1: G/L - Expense | B1: Invoice Date | C1: Invoice # | D1: Requested by | E1: Amount of Check | F1: Name of Payee | G1: Check Use | H1: Method of Distribution | I1: File Date | J1: Constructed Key Field
A2: 4000 | B2: 3874200.00% | C2: 5 | D2: Robert Walters | E2: $1,854.00 | F2: Trey Research | G2: New laptop | H2: Credit | I2: 3874200.00% | J2: =TEXT(B2,"mmm-yy") -> Jan-06
A3: 4000 | J3: =TEXT(B3,"mmm-yy") -> Jan-00
A4: Total | E4: =SUBTOTAL(109,E2:E3) -> $1,854.00

Sheet 5000-Other
A1: G/L - Expense | B1: Invoice Date | C1: Invoice # | D1: Requested by | E1: Amount of Check | F1: Name of Payee | G1: Check Use | H1: Method of Distribution | I1: File Date | J1: Constructed Key Field
A2: 5000 | B2: 3874000.00% | C2: 4 | D2: Bob Gage | E2: $35.60 | F2: Bob Gage | G2: Cab fare | H2: Check | I2: 3874000.00% | J2: =TEXT(B2,"mmm-yy") -> Jan-06
A3: 5000 | J3: =TEXT(B3,"mmm-yy") -> Jan-00
A4: Total | E4: =SUBTOTAL(109,E2:E3) -> $35.60
